Cogmind - Beta 13 @@@ ROGUE MODE // 2024.04.03 @ 17:53:43 Player: Ashlemon Result: Destroyed by as-28932 with Assembled Blade Performance ------------- Evolutions (1) 500 Regions Visited (3) 600 Robots Destroyed (29) 145 Value Destroyed (742) 742 Prototype IDs (0) 0 Alien Tech Used (0) 0 Bonus (0) 0 TOTAL SCORE: 1987 Bonus ------- None Cogmind --------- Core Integrity 0/400 Matter 271/300 Energy 202/265 System Corruption 3% Temperature Cool (0) Movement Core (300) Ox5 Location -9/Mines Parts ------- > --- POWER (1) -------- Improved Ion Engine > --- PROPULSION (2) --- Aluminum Leg > --- UTILITY (4) ------ Small Storage Unit Transport Network Coupler > --- WEAPON (2) ------- High-powered Shotgun High-powered Shotgun > --- INVENTORY (8) ---- ECM Suite Shield Generator Hacking Suite Mini Grenade Launcher Datajack Peak State ------------ > --- POWER ------------ Improved Ion Engine > --- PROPULSION ------- Aluminum Leg Aluminum Leg > --- UTILITY ---------- Small Storage Unit Transport Network Coupler Medium Armor Plating Hacking Suite > --- WEAPON ----------- High-powered Shotgun High-powered Shotgun > --- INVENTORY -------- Light Ion Engine Light Treads Structural Scanner ECM Suite Shield Generator Hacking Suite Mini Grenade Launcher Datajack [Rating: 18] Favorites ----------- Power Ion Engine Engine Ion Engine Power Core Light Nuclear Core Propulsion Aluminum Leg Treads Light Treads Leg Aluminum Leg Utility Small Storage Unit Device ECM Suite Storage Small Storage Unit Processor Transport Network Coupler Hackware Hacking Suite Protection Medium Armor Plating Weapon High-powered Shotgun Energy Gun Beam Rifle Ballistic Gun High-powered Shotgun Launcher Grenade Launcher Build | -11 -10 -9 -9 ------- Run | Yrd Mat Mat Min Slots Evolved 2 | . . 2 . Power . | . . . . Propulsion . | . . . . Utility 2 | . . 2 . Weapon . | . . . . Parts Attached 39 | 9 3 25 2 Power 9 | 2 . 6 1 Engine 8 | 2 . 5 1 Core 1 | . . 1 . Reactor . | . . . . Propulsion 12 | 4 1 6 1 Treads 6 | 2 . 3 1 Leg 6 | 2 1 3 . Wheel . | . . . . Hover . | . . . . Flight . | . . . . Utility 8 | 1 1 6 . Device 3 | . 1 2 . Storage 1 | 1 . . . Processor 1 | . . 1 . Hackware 1 | . . 1 . Protection 2 | . . 2 . Artifact . | . . . . Weapon 10 | 2 1 7 . Energy Gun 1 | . . 1 . Energy Cannon . | . . . . Ballistic Gun 7 | 2 . 5 . Ballistic Cannon . | . . . . Launcher 2 | . 1 1 . Special Weapon . | . . . . Impact Weapon . | . . . . Slashing Weapon . | . . . . Piercing Weapon . | . . . . Special Melee Weapon . | . . . . Unidentified Prototypes . | . . . . Parts Lost 14 | . . 9 5 Power 4 | . . 3 1 Propulsion 5 | . . 3 2 Utility 3 | . . 1 2 Weapon 2 | . . 2 . Highest Loss Streak 5 | . . 3 5 To Critical Strikes . | . . . . Average Slot Usage (%) 97 | . 97 98 88 Engine 10 | . 14 9 8 Treads 3 | . . 5 2 Leg 19 | . 26 16 19 Device 16 | . 13 17 8 Storage 11 | . 14 11 11 Processor 8 | . . 11 11 Hackware 1 | . . 2 . Protection 1 | . . 1 5 Energy Gun 2 | . . 3 . Ballistic Gun 16 | . 18 16 22 Launcher 3 | . 9 1 . Naked Turns . | . . . . Heaviest Build 26 | 13 17 26 26 Greatest Support 40 | 40 20 40 20 Greatest Overweight (x) 2 | . 1 2 1 Average Overweight (x) . | . . . . Largest Inventory Capacity 8 | 8 8 8 8 Average Capacity 7 | 7 8 8 8 Most Carried 8 | 7 8 8 7 Average Carried 7 | 3 7 7 6 Final Capacity 8 | 8 8 8 8 Final Carried 8 | 6 8 7 5 Class Distribution -------------------- 53% | Mutant 45% | Infiltrator-Mutant Dominant Class ---------------- Mutant | -10/Materials Infiltrator-Mutant | -9/Materials Mutant | -9/Mines Resources | -11 -10 -9 -9 ----------- Run | Yrd Mat Mat Min Matter Collected 787 | 206 129 452 . Remotely . | . . . . Salvage Created 777 | . 74 680 23 Parts 67 | . 6 59 2 Haulers Intercepted . | . . . . Recyclers Shooed . | . . . . Parts Field Recycled . | . . . . Retrieved Matter . | . . . . Parts Self-Destructed . | . . . . Prevented . | . . . . Kills | -11 -10 -9 -9 ------- Run | Yrd Mat Mat Min Combat Hostiles Destroyed 27 | . 4 22 1 Guns 22 | . 4 17 1 AOE 5 | . . 5 . Classes Destroyed 6 | . 2 3 1 Worker 1 | . . 1 . Builder 1 | . . 1 . Swarmer 13 | . 3 10 . Grunt 5 | . 1 4 . Sentry 8 | . . 8 . Demolisher 1 | . . . 1 Best Kill Streak 5 | . 3 5 1 Combat Bots Only 4 | . 3 4 1 Max Kills in Single Turn 4 | . 1 4 1 Gunslinging . | . . . . Exploded 3 | . . 3 . Melee . | . . . . Uniques/NPCs Destroyed . | . . . . Combat | -11 -10 -9 -9 -------- Run | Yrd Mat Mat Min Hostile Shots Fired 181 | . 8 159 14 Missed 46 | . 2 42 2 Damage Taken 2252 | . 43 1596 613 Core 442 | . 15 249 178 Absorbed by Shields . | . . . . Regen/Repaired (Parts) 15 | . 15 . . Core Remaining (%) 97 | 100 94 . . Volleys Fired 69 | . 5 61 3 Largest 2 | . 2 2 2 Hottest 79 | . 40 79 50 Shots Fired 124 | . 9 109 6 Gun 121 | . 9 106 6 Cannon . | . . . . Launcher 3 | . . 3 . Special . | . . . . Kinetic 103 | . 9 88 6 Thermal 18 | . . 18 . Explosive 3 | . . 3 . Electromagnetic . | . . . . Robot Hit Streak 12 | . 7 12 5 Robot Miss Streak 5 | . 1 5 4 Penetration Max . | . . . . Secondary Targets 1 | . . . 1 Max Gunslinging Chain 1 | . . . 1 Shots Hit Robots 89 | . 7 78 4 Core Hits 46 | . 4 38 4 Critical Kills 1 | . . 1 . Critical Parts Destroyed . | . . . . Critical Strikes 3 | . . 3 . Burn 2 | . . 2 . Destroy 1 | . . 1 . Melee Attacks . | . . . . Impact . | . . . . Slashing . | . . . . Piercing . | . . . . Sneak Attacks . | . . . . Combat Hostiles . | . . . . Follow-up Attacks . | . . . . Damage Inflicted 1523 | . 76 1375 72 Guns 1116 | . 76 968 72 Cannons . | . . . . Explosions 407 | . . 407 . Melee . | . . . . Ramming . | . . . . Kinetic 926 | . 76 778 72 Thermal 304 | . . 304 . Explosive 293 | . . 293 . Electromagnetic . | . . . . Impact . | . . . . Slashing . | . . . . Piercing . | . . . . Highest Corruption 3 | . 3 . 3 Average Corruption 2 | . 2 . 3 Corruption Purged . | . . . . Corruption Blocked . | . . . . Effects 3 | . 3 . . Message Errors 1 | . 1 . . Energy Discharges 1 | . 1 . . Data Loss (major) 1 | . 1 . . Overload Shots . | . . . . Overflow Damage 57 | . . 57 . Projectiles . | . . . . Explosions 57 | . . 57 . Melee . | . . . . Knockbacks . | . . . . Impact . | . . . . Kinetic . | . . . . Secondary . | . . . . Self-Inflicted Damage 113 | . . 113 . Shots 1 | . . 1 . Rammed . | . . . . Targets Rammed . | . . . . Kicked . | . . . . Crushed . | . . . . Highest Temperature 133 | . . 133 . Average Temperature 31 | . . 31 . Received Heat Transfer 390 | . . 390 . Siege Activations . | . . . . Robots Corrupted . | . . . . Combat Hostiles . | . . . . Parts Fried . | . . . . Impact Corruptions . | . . . . Robots Melted . | . . . . Combat Hostiles . | . . . . Parts Melted 2 | . . 2 . Heat Transferred 679 | . . 679 . Parts Sabotaged . | . . . . Parts Stolen . | . . . . Parts Stripped . | . . . . Power Chain Reactions . | . . . . Alert | -11 -10 -9 -9 ------- Run | Yrd Mat Mat Min Peak Influence 358 | . 115 358 95 Initial 95 | . . . 95 Average 119 | . 51 156 87 Maximum Alert Level 1 | . . 1 . Low Security (%) 76 | 100 100 65 100 Level 1 23 | . . 34 . Level 2 . | . . . . Level 3 . | . . . . Level 4 . | . . . . Level 5 . | . . . . High Security . | . . . . Max Security . | . . . . Squads Dispatched 3 | . 1 2 . Investigation . | . . . . Extermination . | . . . . Reinforcement 3 | . 1 2 . Assault . | . . . . Garrison . | . . . . Intercept . | . . . . Searches Triggered . | . . . . Construction Impeded . | . . . . Haulers Reinforced . | . . . . Active Scanning Responses . | . . . . Cargo Convoy Interrupts . | . . . . Stealth | -11 -10 -9 -9 --------- Run | Yrd Mat Mat Min Distress Signals 2 | . . 2 . Communications Jammed . | . . . . Distress Signals . | . . . . Times Spotted 48 | . 9 33 6 Peak Tracking Total 8 | . 5 8 6 Tactical Retreats 7 | . 1 6 . Traps | -11 -10 -9 -9 ------- Run | Yrd Mat Mat Min Traps Triggered 5 | . 2 3 . Indirectly . | . . . . Trap Hack Attempts . | . . . . Triggered . | . . . . Disarmed . | . . . . Reprogrammed . | . . . . Reused . | . . . . Traps Extracted . | . . . . Installed . | . . . . Triggered . | . . . . Machines | -11 -10 -9 -9 ---------- Run | Yrd Mat Mat Min Machines Disabled 1 | . . 1 . Max in Single Turn 1 | . . 1 . Machines Repaired . | . . . . Machines Dismantled . | . . . . Machines Sabotaged . | . . . . Overloaded Fab Kills . | . . . . Hacking | -11 -10 -9 -9 --------- Run | Yrd Mat Mat Min Machines Accessed 5 | . 2 3 . Terminals 3 | . 1 2 . Fabricators . | . . . . Repair Stations 1 | . 1 . . Recycling Units . | . . . . Scanalyzers 1 | . . 1 . Garrison Access . | . . . . Total Hacks 10 | . 4 6 . Successful 7 | . 3 4 . Failed 3 | . 1 2 . Catastrophic . | . . . . Database Lockouts . | . . . . Manual 2 | . . 2 . Terminals 6 | . 1 5 . Fabricators . | . . . . Repair Stations 3 | . 3 . . Recycling Units . | . . . . Scanalyzers 1 | . . 1 . Garrison Access . | . . . . Terminal Hacks 5 | . 1 4 . Record 4 | . . 4 . Maintenance Status 1 | . 1 . . Fabricator Hacks . | . . . . Repair Station Hacks 2 | . 2 . . Scan Component 1 | . 1 . . Repair 1 | . 1 . . Recycling Unit Hacks . | . . . . Scanalyzer . | . . . . Garrison Access Hacks . | . . . . Unauthorized Hacks . | . . . . Terminals . | . . . . Fabricators . | . . . . Repair Stations . | . . . . Recycling Units . | . . . . Scanalyzers . | . . . . Garrison Access . | . . . . Data Cores Recovered . | . . . . Used . | . . . . Hacking Detections 4 | . 1 3 . Full Trace Events . | . . . . Feedback Events . | . . . . Feedback Blocked . | . . . . Robot Schematics Acquired . | . . . . Robots Built . | . . . . Authchips . | . . . . Time . | . . . . Total Robot Build Rating . | . . . . Part Schematics Acquired . | . . . . Parts Built . | . . . . Authchips . | . . . . Time . | . . . . Total Part Build Rating . | . . . . Parts Repaired 1 | . 1 . . Time 26 | . 26 . . Parts Recycled . | . . . . Recycled Matter . | . . . . Retrieved Matter . | . . . . Retrieved Components . | . . . . Parts Scanalyzed . | . . . . Part Schematics Acquired . | . . . . Parts Damaged . | . . . . Bothacking | -11 -10 -9 -9 ------------ Run | Yrd Mat Mat Min Used RIF Installer . | . . . . Robots Hacked . | . . . . Non-combat . | . . . . Combat . | . . . . Robot Hacks Applied . | . . . . Relay Couplers Released . | . . . . Fabnet Peak Effective % . | . . . . Robots Rewired . | . . . . Allies Hacked . | . . . . Hacks Repelled . | . . . . Allies | -11 -10 -9 -9 -------- Run | Yrd Mat Mat Min Total Allies . | . . . . Largest Group . | . . . . Highest-Rated Group . | . . . . Highest-Rated Ally . | . . . . Total Orders . | . . . . Ally Attacks . | . . . . Total Damage . | . . . . Kills . | . . . . Allies Corrupted . | . . . . Allies Melted . | . . . . Intel | -11 -10 -9 -9 ------- Run | Yrd Mat Mat Min Robot Analysis Total . | . . . . Derelict Logs Recovered . | . . . . Drone Launches . | . . . . Drone Recoveries . | . . . . Exploration | -11 -10 -9 -9 ------------- Run | Yrd Mat Mat Min Turns Passed 1882 | 130 452 1261 39 Spaces Moved 1146 | 75 340 716 15 Core 2 | 2 . . . Treads 184 | 55 . 126 3 Legs 960 | 18 340 590 12 Wheels . | . . . . Hover . | . . . . Flight . | . . . . Fastest Speed 50 | 50 120 120 160 Average Speed 136 | 147 124 140 184 Slowest Speed 260 | 160 190 260 190 Overloaded Moves . | . . . . Propulsion Burnouts . | . . . . Robots Hopped . | . . . . Cave-ins Triggered 1 | . . . 1 Exploration Rate (%) 27 | 5 39 56 8 Regions Visited 3 Branch Regions 1 Pre-discovered Areas . | . . . . Known Exits Taken . | . . . . Unknown Exits Taken 3 | 1 1 1 . Scrap Searched . | . . . . Spaces Dug 7 | . . 7 . Terrain Destroyed 64 | . . 64 . Melee . | . . . . Projectile . | . . . . AOE 64 | . . 64 . Terrain Rammed . | . . . . Walls Destroyed . | . . . . Machines Disabled . | . . . . Actions | -11 -10 -9 -9 --------- Run | Yrd Mat Mat Min Total 1345 | 90 361 874 20 Wait 48 | . 4 44 . Move 1143 | 74 339 715 15 Hop . | . . . . Pick Up 29 | 7 6 16 . Fast Attach 11 | 5 2 4 . Attach 13 | 1 . 10 2 Detach 3 | . . 3 . Swap 15 | 3 1 11 . Drop 14 | . 4 10 . Fire 69 | . 5 61 3 Melee . | . . . . Ram . | . . . . Kick . | . . . . Crush . | . . . . Escape Stasis . | . . . . Rewire . | . . . . Trap . | . . . . Miscellaneous . | . . . . Route ------- -11/Scrapyard -10/Materials (discovered 2 exits: *Mat / [*Min]) -9/Materials -9/Mines (discovered 1 exit: [*Mat]) History --------- Turn | Location | Event 12 | -11/Scrapyard | Discovered new exit (range 15) 131 | -11/Scrapyard | Entered Materials 155 | -10/Materials | Discovered new exit (range 13) 310 | -10/Materials | Build established: Mutant 414 | -10/Materials | Discovered new exit (range 13) 421 | -10/Materials | Repaired Aluminum Leg? 583 | -10/Materials | Entered another Materials area 583 | -9/Materials | Evolved 2 slots: Utility x2 900 | -9/Materials | Build established: Infiltrator-Mutant 912 | -9/Materials | Lost 3 parts (1p2w) 1650 | -9/Materials | Core integrity fell below 50% 1762 | -9/Materials | Discovered new exit (range 13) 1764 | -9/Materials | Build established: Mutant 1844 | -9/Materials | Entered Mines 1857 | -9/Mines | Assembled infested the area 1863 | -9/Mines | Discovered new exit (range 10) 1874 | -9/Mines | Crushed by falling debris 1874 | -9/Mines | Core integrity fell below 20% 1883 | -9/Mines | Destroyed by as-28932 with Assembled Blade Last Messages --------------- U-05 Engineer destroyed. Med. Armor Plating destroyed. K-01 Serf destroyed. Imp. Ion Engine destroyed. as-15076 destroyed. as-42762 destroyed. Aluminum Leg destroyed. U-05 Engineer lays Concrete. D-53 Grenadier destroyed. Switching to secondary target: D-53 Grenadier. The unstable cave ceiling collapses. U-05 Engineer lays Concrete. D-53 Grenadier destroyed. The unstable cave ceiling collapses. Crushed by falling debris. Structural Scanner destroyed. System corrupted by crushing effect (+3). U-05 Engineer lays Concrete. U-05 Engineer destroyed. Lgt. Treads destroyed. Map ----- +----------------------------------------------------+ | | | | | | | | | | | | | | | | | | | | | | | | | | | | | | | | | ????????????????????????????????????? | | ?#############???######?????????????? | | ?#############??#########???????????? | | ?## ###### #####??????????? | | ?## ##### < ###??????????? | | ?## # ## ##??????????? | | ?## * !% ##??????????? | | ?## !* ] ###??????????? | | ?## """ a %!!% ###???????????? | | ?## """ @ = ###???????????? | | ?## """ # a ##???????????? | | ?## # # a ##???????????? | | ?## # #???????????? | | ?## ?? ??????????? | | ?########## ### ???????????? | | ?################# ??????????? | | ?????????########??? # # ??????????? | | ????????????????????#####???????????? | | ??????????????????????###???????????? | | ????????????????????????????????????? | | ????????????????????????????????????? | | ????????????????????????????????????? | | ????????????????????????????????????? | | ????????????????????????????????????? | | ????????????????????????????????????? | | ????????????????????????????????????? | | ????????????????????????????????????? | | ????????????????????????????????????? | | ????????????????????????????????????? | | ????????????????????????????????????? | | ????????????????????????????????????? | | ????????????????????????????????????? | | ????????????????????????????????????? | | ????????????????????????????????????? | +----------------------------------------------------+ Best States ------------- Heat Dissipation 28 Energy Generation 14 Energy Capacity 265 Matter Stores 300 Matter Capacity 300 Sight Range 16 Terrain Scan Density 10 ECM Strength 1 Armor Coverage 225 Evasion (%) 55 Recoil Reduction 2 Offensive Hacking 10 Item Schematics ----------------- None Robot Schematics ------------------ None Fabricated ------------ Nothing Alien Tech Used ----------------- None Achievements -------------- None Challenges ------------ None Game ------ Seed TransportArmoredRifle Manual? 0 Play Time 00:23:46 Cumulative 4.4 hours Start 2024.04.03 @ 16:20:39 End 2024.04.03 @ 17:53:43 Sessions 1 Manual Loads 0 Difficulty Rogue Special Mode None Game No. 10 Rogue 10 Adventurer 0 Explorer 0 Win Type - Total 0 Types 0/0/0/0/0/0/0/0/0 Lore% 4 Gallery% 10 Achievement% 8 Wizard Run 0 Options --------- Layout 1 ASCII 0 Keyboard 1 Movement Arrows Keybinds 0 Fullscreen 1 Font 24/Smallcaps Map View 50x35 Zoom Use 0% Tactical HUD 0 Map Filters NONE Filters NONE Steam 1 RUN: e3db715c-8b47-4603-90f7-4e2ffa55ee25